[Event "*** Titled Tuesday Blitz"]
[Site "Chess.com"]
[Date "2018.05.01"]
[Round "7"]
[White "RojonR"]
[Black "PrinceCharming92"]
[Result "0-1"]
[WhiteElo "2390"]
[BlackElo "2458"]
[TimeControl "180+2"]
[EndTime "14:34:31 PDT"]
[Termination "PrinceCharming92 won by resignation"]

1. e4 {[%clk 0:03:01.9]} 1... d5 {[%clk 0:03:00.1]} 2. exd5 {[%clk 0:03:02.1]}
2... Qxd5 {[%clk 0:03:00.1]} 3. Nc3 {[%clk 0:03:00.5]} 3... Qd6 {[%clk
0:03:01.1]} 4. d4 {[%clk 0:03:00.4]} 4... Nf6 {[%clk 0:03:01.3]} 5. Nf3 {[%clk
0:03:01]} 5... c6 {[%clk 0:03:01.8]} 6. Be2 {[%clk 0:02:59.4]} 6... Bf5 {[%clk
0:03:02.1]} 7. O-O {[%clk 0:02:58.8]} 7... e6 {[%clk 0:03:02.3]} 8. h3 {[%clk
0:02:49.7]} 8... Be7 {[%clk 0:03:01.1]} 9. Bg5 {[%clk 0:02:47.9]} 9... Nbd7
{[%clk 0:02:59.4]} 10. Qd2 {[%clk 0:02:48.3]} 10... O-O {[%clk 0:02:59]} 11. Bf4
{[%clk 0:02:42.3]} 11... Qb4 {[%clk 0:02:59.1]} 12. a3 {[%clk 0:02:17.6]} 12...
Qxb2 {[%clk 0:02:52.7]} 13. Ra2 {[%clk 0:01:42.6]} 13... Qb6 {[%clk 0:02:29.4]}
14. Rb1 {[%clk 0:01:42.7]} 14... Qd8 {[%clk 0:02:26.7]} 15. Rxb7 {[%clk
0:01:43.5]} 15... Nb6 {[%clk 0:02:27.3]} 16. Ne5 {[%clk 0:01:28.1]} 16... Qe8
{[%clk 0:02:01.4]} 17. Bg5 {[%clk 0:01:00.5]} 17... Nfd5 {[%clk 0:01:35]} 18.
Nxd5 {[%clk 0:00:52.8]} 18... Bxg5 {[%clk 0:01:10.3]} 19. Qxg5 {[%clk
0:00:51.2]} 19... cxd5 {[%clk 0:01:06.5]} 20. a4 {[%clk 0:00:44.3]} 20... h6
{[%clk 0:00:52.3]} 21. Qg3 {[%clk 0:00:41]} 21... Qc8 {[%clk 0:00:49.7]} 22. Ba6
{[%clk 0:00:37.3]} 22... Qd8 {[%clk 0:00:43.8]} 23. a5 {[%clk 0:00:36.9]} 23...
Nc4 {[%clk 0:00:39.2]} 24. Nxc4 {[%clk 0:00:30.3]} 24... dxc4 {[%clk 0:00:41.1]}
25. c3 {[%clk 0:00:27.3]} 25... Bd3 {[%clk 0:00:35.2]} 26. Rab2 {[%clk
0:00:24.6]} 26... Qxa5 {[%clk 0:00:34.6]} 27. Qd6 {[%clk 0:00:17.7]} 27... Rad8
{[%clk 0:00:28.9]} 28. Qc6 {[%clk 0:00:15.5]} 28... Rc8 {[%clk 0:00:18]} 29. Qb5
{[%clk 0:00:14.2]} 29... Qa1+ {[%clk 0:00:19]} 30. Kh2 {[%clk 0:00:14.3]} 30...
Qc1 {[%clk 0:00:19.8]} 31. Qb4 {[%clk 0:00:14.4]} 31... Qf4+ {[%clk 0:00:19.9]}
32. g3 {[%clk 0:00:15.4]} 32... Qf3 {[%clk 0:00:19.5]} 33. Rxa7 {[%clk
0:00:16.6]} 33... Be4 {[%clk 0:00:20.3]} 0-1

[Event "*** Titled Tuesday Blitz"]
[Site "Chess.com"]
[Date "2018.05.01"]
[Round "7"]
[White "bangchess21"]
[Black "lucasmito"]
[Result "1-0"]
[WhiteElo "2509"]
[BlackElo "2361"]
[TimeControl "180+2"]
[EndTime "14:34:33 PDT"]
[Termination "bangchess21 won by checkmate"]

1. e4 {[%clk 0:03:01.9]} 1... e5 {[%clk 0:02:59.8]} 2. Nf3 {[%clk 0:03:02.9]}
2... Nc6 {[%clk 0:03:01.1]} 3. d4 {[%clk 0:03:04]} 3... exd4 {[%clk 0:03:01.9]}
4. Nxd4 {[%clk 0:03:05.8]} 4... Nf6 {[%clk 0:03:03]} 5. Nxc6 {[%clk 0:03:07.1]}
5... bxc6 {[%clk 0:03:04.9]} 6. e5 {[%clk 0:03:08.3]} 6... Qe7 {[%clk
0:03:06.1]} 7. Qe2 {[%clk 0:03:09.5]} 7... Nd5 {[%clk 0:03:07.8]} 8. c4 {[%clk
0:03:10.9]} 8... Ba6 {[%clk 0:03:09.2]} 9. Nd2 {[%clk 0:03:12.3]} 9... g6 {[%clk
0:03:09.7]} 10. b3 {[%clk 0:03:13.4]} 10... Bg7 {[%clk 0:03:10.4]} 11. Bb2
{[%clk 0:03:14.8]} 11... O-O {[%clk 0:03:10.4]} 12. O-O-O {[%clk 0:03:15.8]}
12... Rfe8 {[%clk 0:02:37.8]} 13. Nf3 {[%clk 0:03:05.3]} 13... d6 {[%clk
0:02:13.7]} 14. Qd2 {[%clk 0:02:57.5]} 14... Nb6 {[%clk 0:02:02.5]} 15. exd6
{[%clk 0:02:46.2]} 15... Bxb2+ {[%clk 0:02:04.4]} 16. Kxb2 {[%clk 0:02:46.5]}
16... cxd6 {[%clk 0:02:03.8]} 17. Qxd6 {[%clk 0:02:47.3]} 17... Qb7 {[%clk
0:01:49.5]} 18. Ka1 {[%clk 0:02:24.1]} 18... Rab8 {[%clk 0:01:25.8]} 19. Bd3
{[%clk 0:02:01.1]} 19... Bxc4 {[%clk 0:00:58.3]} 20. Bxc4 {[%clk 0:01:51.1]}
20... Nxc4 {[%clk 0:01:00.2]} 21. Qc5 {[%clk 0:01:38.6]} 21... Nb6 {[%clk
0:00:49.2]} 22. Rhe1 {[%clk 0:01:38.7]} 22... Nd5 {[%clk 0:00:46.2]} 23. Nd4
{[%clk 0:01:34.2]} 23... Nb4 {[%clk 0:00:42.2]} 24. Rxe8+ {[%clk 0:01:19.4]}
24... Rxe8 {[%clk 0:00:44.1]} 25. a3 {[%clk 0:01:20.6]} 25... Nd5 {[%clk
0:00:04.2]} 26. Qxc6 {[%clk 0:01:03]} 26... Qxc6 {[%clk 0:00:03.5]} 27. Nxc6
{[%clk 0:01:04.2]} 27... Nc3 {[%clk 0:00:04.4]} 28. Rd2 {[%clk 0:01:03.9]} 28...
Re1+ {[%clk 0:00:05]} 29. Kb2 {[%clk 0:01:04.6]} 29... Nb5 {[%clk 0:00:03.2]}
30. a4 {[%clk 0:01:03.5]} 30... Nc7 {[%clk 0:00:03.3]} 31. Nxa7 {[%clk
0:01:03.7]} 31... Ne6 {[%clk 0:00:04]} 32. b4 {[%clk 0:00:52.3]} 32... Kf8
{[%clk 0:00:05.9]} 33. Nc6 {[%clk 0:00:51.8]} 33... Ke8 {[%clk 0:00:04.6]} 34.
b5 {[%clk 0:00:50.7]} 34... Re4 {[%clk 0:00:05.5]} 35. b6 {[%clk 0:00:47.1]}
35... Nc5 {[%clk 0:00:03.8]} 36. Rd8# {[%clk 0:00:47.4]} 1-0

[Event "*** Titled Tuesday Blitz"]
[Site "Chess.com"]
[Date "2018.05.01"]
[Round "7"]
[White "Vamostodorecto"]
[Black "LuisFSiles"]
[Result "0-1"]
[WhiteElo "2390"]
[BlackElo "2252"]
[TimeControl "180+2"]
[EndTime "14:34:34 PDT"]
[Termination "LuisFSiles won by resignation"]

1. d4 {[%clk 0:03:01.9]} 1... Nf6 {[%clk 0:03:00.3]} 2. c4 {[%clk 0:03:02]} 2...
g6 {[%clk 0:03:01.1]} 3. Nc3 {[%clk 0:03:02.4]} 3... Bg7 {[%clk 0:03:02.2]} 4.
e4 {[%clk 0:03:03]} 4... d6 {[%clk 0:03:03.5]} 5. Be2 {[%clk 0:03:04.4]} 5...
O-O {[%clk 0:03:04.3]} 6. Nf3 {[%clk 0:03:06]} 6... c5 {[%clk 0:03:04.8]} 7. d5
{[%clk 0:03:05.3]} 7... e6 {[%clk 0:03:02.5]} 8. O-O {[%clk 0:03:05.8]} 8...
exd5 {[%clk 0:03:03.6]} 9. cxd5 {[%clk 0:03:06.3]} 9... Bg4 {[%clk 0:03:03.3]}
10. Bg5 {[%clk 0:03:06.8]} 10... Bxf3 {[%clk 0:02:59.4]} 11. Bxf3 {[%clk
0:03:06.6]} 11... h6 {[%clk 0:03:00.8]} 12. Bf4 {[%clk 0:03:05.9]} 12... a6
{[%clk 0:02:57.2]} 13. Qd2 {[%clk 0:03:04.7]} 13... Kh7 {[%clk 0:02:47.1]} 14.
e5 {[%clk 0:03:05.2]} 14... dxe5 {[%clk 0:02:40.2]} 15. Bxe5 {[%clk 0:03:07.1]}
15... Nbd7 {[%clk 0:02:39.9]} 16. Bg3 {[%clk 0:03:04.7]} 16... b5 {[%clk
0:02:21.3]} 17. Rfe1 {[%clk 0:03:03]} 17... b4 {[%clk 0:02:19.1]} 18. Ne4 {[%clk
0:03:03.3]} 18... Nxe4 {[%clk 0:02:18.3]} 19. Bxe4 {[%clk 0:03:03.8]} 19... Bd4
{[%clk 0:02:12.5]} 20. Bf4 {[%clk 0:02:38.3]} 20... Qf6 {[%clk 0:01:58.4]} 21.
Bf3 {[%clk 0:02:16.3]} 21... Bxb2 {[%clk 0:01:24.9]} 22. Rad1 {[%clk 0:01:56.4]}
22... Bc3 {[%clk 0:01:25]} 23. Qc1 {[%clk 0:01:57.1]} 23... Bxe1 {[%clk
0:01:22.9]} 24. Rxe1 {[%clk 0:01:59]} 24... Rae8 {[%clk 0:01:21.7]} 25. Rd1
{[%clk 0:01:58.6]} 25... Ne5 {[%clk 0:01:21.3]} 26. Be4 {[%clk 0:01:54.6]} 26...
c4 {[%clk 0:01:16.8]} 27. d6 {[%clk 0:01:49.1]} 27... Nd3 {[%clk 0:01:17.1]} 28.
Bxd3 {[%clk 0:01:48.6]} 28... cxd3 {[%clk 0:01:16.3]} 29. h3 {[%clk 0:01:31.7]}
29... Re4 {[%clk 0:01:10]} 30. Bxh6 {[%clk 0:01:26.3]} 30... Rd8 {[%clk
0:01:00.8]} 31. Bg5 {[%clk 0:01:26.9]} 31... Qxd6 {[%clk 0:00:49.8]} 32. Bxd8
{[%clk 0:01:27.4]} 32... Qxd8 {[%clk 0:00:51.7]} 33. Qc6 {[%clk 0:01:12.8]}
33... Re2 {[%clk 0:00:42.9]} 34. Qxa6 {[%clk 0:01:10]} 34... Qd4 {[%clk
0:00:39.6]} 35. Rf1 {[%clk 0:00:55.3]} 35... Rxf2 {[%clk 0:00:29.3]} 36. Rxf2
{[%clk 0:00:52.3]} 36... d2 {[%clk 0:00:30.6]} 37. Kh2 {[%clk 0:00:43.8]} 37...
Qxf2 {[%clk 0:00:29]} 38. Qd6 {[%clk 0:00:43.1]} 38... Qe1 {[%clk 0:00:25.9]}
39. Qf8 {[%clk 0:00:42]} 39... Qe5+ {[%clk 0:00:25.3]} 40. g3 {[%clk 0:00:41.6]}
40... Qe2+ {[%clk 0:00:25.9]} 0-1

[Event "*** Titled Tuesday Blitz"]
[Site "Chess.com"]
[Date "2018.05.01"]
[Round "7"]
[White "tuttocalabria"]
[Black "DrZeiss"]
[Result "1-0"]
[WhiteElo "2400"]
[BlackElo "2226"]
[TimeControl "180+2"]
[EndTime "14:34:44 PDT"]
[Termination "tuttocalabria won on time"]

1. d4 {[%clk 0:02:48.7]} 1... Nf6 {[%clk 0:03:00]} 2. Bg5 {[%clk 0:02:49.3]}
2... b6 {[%clk 0:02:55.2]} 3. Bxf6 {[%clk 0:02:49.6]} 3... gxf6 {[%clk
0:02:53.7]} 4. e3 {[%clk 0:02:50.4]} 4... Bb7 {[%clk 0:02:53.8]} 5. Nf3 {[%clk
0:02:51.1]} 5... e6 {[%clk 0:02:49.5]} 6. g3 {[%clk 0:02:51.2]} 6... d6 {[%clk
0:02:44.3]} 7. Bg2 {[%clk 0:02:51.5]} 7... Nd7 {[%clk 0:02:45.3]} 8. O-O {[%clk
0:02:51.6]} 8... Bg7 {[%clk 0:02:41.5]} 9. c4 {[%clk 0:02:51.8]} 9... f5 {[%clk
0:02:39]} 10. Nc3 {[%clk 0:02:51.7]} 10... O-O {[%clk 0:02:38]} 11. Ne1 {[%clk
0:02:44.4]} 11... Bxg2 {[%clk 0:02:36.5]} 12. Nxg2 {[%clk 0:02:44.3]} 12... Nf6
{[%clk 0:02:33.2]} 13. Qd3 {[%clk 0:02:44]} 13... Qd7 {[%clk 0:02:31.5]} 14.
Rad1 {[%clk 0:02:43.7]} 14... Rad8 {[%clk 0:02:29]} 15. Rfe1 {[%clk 0:02:44.1]}
15... Rfe8 {[%clk 0:02:11.1]} 16. Nf4 {[%clk 0:02:40.7]} 16... c6 {[%clk
0:01:59.1]} 17. Qf1 {[%clk 0:02:12.9]} 17... Qc8 {[%clk 0:01:54.5]} 18. Qg2
{[%clk 0:02:04.7]} 18... e5 {[%clk 0:01:41]} 19. Nfe2 {[%clk 0:02:04.4]} 19...
h5 {[%clk 0:01:24.8]} 20. Rd2 {[%clk 0:02:03.8]} 20... h4 {[%clk 0:00:59.5]} 21.
Red1 {[%clk 0:02:00.4]} 21... e4 {[%clk 0:00:48.2]} 22. Qh3 {[%clk 0:01:44.5]}
22... hxg3 {[%clk 0:00:43.3]} 23. Nxg3 {[%clk 0:01:30.2]} 23... Ng4 {[%clk
0:00:41.7]} 24. Nce2 {[%clk 0:01:23.2]} 24... d5 {[%clk 0:00:20.5]} 25. Qh5
{[%clk 0:01:15.1]} 25... Nh6 {[%clk 0:00:15.8]} 26. cxd5 {[%clk 0:01:01.5]}
26... cxd5 {[%clk 0:00:16]} 27. Rc1 {[%clk 0:01:02.3]} 27... Qd7 {[%clk
0:00:15.9]} 28. Rdc2 {[%clk 0:01:03.2]} 28... Rc8 {[%clk 0:00:16.5]} 29. Rxc8
{[%clk 0:00:56.4]} 29... Rxc8 {[%clk 0:00:18.2]} 30. Rxc8+ {[%clk 0:00:57]}
30... Qxc8 {[%clk 0:00:20.1]} 31. Nc3 {[%clk 0:00:57.5]} 31... Qe6 {[%clk
0:00:18.8]} 32. Qg5 {[%clk 0:00:54.9]} 32... f6 {[%clk 0:00:15.3]} 33. Qg6
{[%clk 0:00:53.2]} 33... Kf8 {[%clk 0:00:13.8]} 34. Nh5 {[%clk 0:00:51.4]} 34...
Qf7 {[%clk 0:00:12.6]} 35. Qxf7+ {[%clk 0:00:49.9]} 35... Kxf7 {[%clk
0:00:13.5]} 36. Nxd5 {[%clk 0:00:51.2]} 36... Bf8 {[%clk 0:00:13.6]} 37. Nhxf6
{[%clk 0:00:44.4]} 37... Ke6 {[%clk 0:00:02.5]} 38. Kg2 {[%clk 0:00:42.6]} 38...
Bg7 {[%clk 0:00:02.6]} 39. Ne8 {[%clk 0:00:41.9]} 1-0

[Event "*** Titled Tuesday Blitz"]
[Site "Chess.com"]
[Date "2018.05.01"]
[Round "7"]
[White "Jbd735"]
[Black "BlackBoarder"]
[Result "1-0"]
[WhiteElo "2355"]
[BlackElo "2221"]
[TimeControl "180+2"]
[EndTime "14:34:46 PDT"]
[Termination "Jbd735 won by checkmate"]

1. e4 {[%clk 0:03:01.9]} 1... e6 {[%clk 0:03:00.9]} 2. d4 {[%clk 0:03:01.9]}
2... d5 {[%clk 0:03:01.5]} 3. Nc3 {[%clk 0:03:02.1]} 3... Bb4 {[%clk 0:03:02.1]}
4. e5 {[%clk 0:03:02.3]} 4... Ne7 {[%clk 0:03:02.9]} 5. Qg4 {[%clk 0:02:46.8]}
5... c5 {[%clk 0:02:24.5]} 6. a3 {[%clk 0:02:41.7]} 6... Qa5 {[%clk 0:01:49.7]}
7. Bb5+ {[%clk 0:01:33.7]} 7... Bd7 {[%clk 0:01:10.8]} 8. Bxd7+ {[%clk 0:01:32]}
8... Kxd7 {[%clk 0:01:12.2]} 9. Ne2 {[%clk 0:01:30.2]} 9... cxd4 {[%clk
0:01:09.9]} 10. Qxd4 {[%clk 0:01:19]} 10... Nbc6 {[%clk 0:01:04.7]} 11. Qf4
{[%clk 0:01:13.5]} 11... d4 {[%clk 0:00:54.7]} 12. Rb1 {[%clk 0:00:43.6]} 12...
Bxc3+ {[%clk 0:00:32.2]} 13. bxc3 {[%clk 0:00:42.7]} 13... b6 {[%clk 0:00:19.2]}
14. O-O {[%clk 0:00:30.7]} 14... Qxe5 {[%clk 0:00:20.1]} 15. Qf3 {[%clk
0:00:23.8]} 15... dxc3 {[%clk 0:00:20.4]} 16. Rd1+ {[%clk 0:00:21.5]} 16... Ke8
{[%clk 0:00:21]} 17. Bf4 {[%clk 0:00:20.5]} 17... Qf6 {[%clk 0:00:20.3]} 18. Rd6
{[%clk 0:00:19.3]} 18... Rc8 {[%clk 0:00:20.8]} 19. Nxc3 {[%clk 0:00:17.3]}
19... Nd4 {[%clk 0:00:16.4]} 20. Rxd4 {[%clk 0:00:14]} 20... Qxd4 {[%clk
0:00:18.3]} 21. Nb5 {[%clk 0:00:14.7]} 21... Qd5 {[%clk 0:00:07.7]} 22. Nd6+
{[%clk 0:00:13.8]} 22... Kd7 {[%clk 0:00:08.8]} 23. Qe2 {[%clk 0:00:09]} 23...
Kc6 {[%clk 0:00:05.3]} 24. Rd1 {[%clk 0:00:07.4]} 24... Qc5 {[%clk 0:00:04.9]}
25. Nxf7 {[%clk 0:00:06.3]} 25... Rhf8 {[%clk 0:00:04.5]} 26. Qxe6+ {[%clk
0:00:06.7]} 26... Kb7 {[%clk 0:00:03.6]} 27. Nd6+ {[%clk 0:00:05.4]} 27... Ka8
{[%clk 0:00:03.7]} 28. Qe4+ {[%clk 0:00:03.2]} 28... Qc6 {[%clk 0:00:01.8]} 29.
Qxe7 {[%clk 0:00:03.4]} 29... Rxf4 {[%clk 0:00:02.8]} 30. Nxc8 {[%clk
0:00:04.1]} 30... Rc4 {[%clk 0:00:02.3]} 31. Qxa7# {[%clk 0:00:03.2]} 1-0

[Event "*** Titled Tuesday Blitz"]
[Site "Chess.com"]
[Date "2018.05.01"]
[Round "7"]
[White "nihalsarin"]
[Black "arna"]
[Result "1-0"]
[WhiteElo "2722"]
[BlackElo "2119"]
[TimeControl "180+2"]
[EndTime "14:34:46 PDT"]
[Termination "nihalsarin won by checkmate"]

1. e4 {[%clk 0:03:01.9]} 1... c5 {[%clk 0:02:58.7]} 2. Nf3 {[%clk 0:03:02.6]}
2... Nc6 {[%clk 0:02:49.3]} 3. d4 {[%clk 0:03:04.5]} 3... cxd4 {[%clk
0:02:50.2]} 4. Nxd4 {[%clk 0:03:06.1]} 4... e5 {[%clk 0:02:51.8]} 5. Nb5 {[%clk
0:03:05.5]} 5... d6 {[%clk 0:02:53.1]} 6. N5c3 {[%clk 0:03:05.5]} 6... Be7
{[%clk 0:02:44.2]} 7. Nd5 {[%clk 0:03:05.7]} 7... Nf6 {[%clk 0:02:45.1]} 8. Nbc3
{[%clk 0:03:07.2]} 8... Be6 {[%clk 0:02:40.4]} 9. Bc4 {[%clk 0:03:06.9]} 9...
O-O {[%clk 0:02:37.7]} 10. O-O {[%clk 0:03:06.9]} 10... Na5 {[%clk 0:02:38.5]}
11. Nxf6+ {[%clk 0:03:07.5]} 11... Bxf6 {[%clk 0:02:37.2]} 12. Bd5 {[%clk
0:03:09.4]} 12... Be7 {[%clk 0:02:14.1]} 13. Qd3 {[%clk 0:03:07.1]} 13... Nc6
{[%clk 0:02:03.1]} 14. a3 {[%clk 0:03:06.3]} 14... a6 {[%clk 0:01:56.4]} 15. Be3
{[%clk 0:03:06.6]} 15... Rc8 {[%clk 0:01:57.3]} 16. Rad1 {[%clk 0:03:08]} 16...
b5 {[%clk 0:01:54.9]} 17. Rd2 {[%clk 0:02:56.5]} 17... Qc7 {[%clk 0:01:50.3]}
18. Qe2 {[%clk 0:02:37.8]} 18... Na5 {[%clk 0:01:43.3]} 19. Bxe6 {[%clk
0:02:38.6]} 19... fxe6 {[%clk 0:01:43.9]} 20. Qg4 {[%clk 0:02:40.4]} 20... Rf6
{[%clk 0:01:38.8]} 21. Rd3 {[%clk 0:02:37.3]} 21... Rg6 {[%clk 0:01:38.1]} 22.
Qh3 {[%clk 0:02:36]} 22... Nc4 {[%clk 0:01:36.1]} 23. Bc1 {[%clk 0:02:32.7]}
23... Rf8 {[%clk 0:01:31.5]} 24. Rg3 {[%clk 0:02:30.3]} 24... Rff6 {[%clk
0:00:49.5]} 25. b3 {[%clk 0:02:16.7]} 25... Nb6 {[%clk 0:00:49.5]} 26. Bg5
{[%clk 0:02:16.6]} 26... Rf7 {[%clk 0:00:49.8]} 27. Bxe7 {[%clk 0:02:16.5]}
27... Rxg3 {[%clk 0:00:46.3]} 28. Qxg3 {[%clk 0:01:51.5]} 28... Rxe7 {[%clk
0:00:38.5]} 29. Qd3 {[%clk 0:01:52.8]} 29... Rd7 {[%clk 0:00:21]} 30. Rd1 {[%clk
0:01:53.1]} 30... Qc6 {[%clk 0:00:18.2]} 31. g3 {[%clk 0:01:45.3]} 31... d5
{[%clk 0:00:17.3]} 32. exd5 {[%clk 0:01:39.7]} 32... exd5 {[%clk 0:00:19.2]} 33.
Qf5 {[%clk 0:01:37.7]} 33... Qxc3 {[%clk 0:00:13.1]} 34. Qe6+ {[%clk 0:01:38.3]}
34... Kf8 {[%clk 0:00:13.1]} 35. Qxb6 {[%clk 0:01:39.4]} 35... Qxc2 {[%clk
0:00:08]} 36. Re1 {[%clk 0:01:32.6]} 36... Qf5 {[%clk 0:00:06.5]} 37. Qxa6
{[%clk 0:01:28.7]} 37... Rf7 {[%clk 0:00:03.1]} 38. Qa8+ {[%clk 0:01:27.8]}
38... Ke7 {[%clk 0:00:04]} 39. f4 {[%clk 0:01:22.2]} 39... e4 {[%clk 0:00:03.8]}
40. Rc1 {[%clk 0:01:23]} 40... g6 {[%clk 0:00:03]} 41. Rc7+ {[%clk 0:01:16.9]}
41... Kf6 {[%clk 0:00:04.2]} 42. Qh8+ {[%clk 0:01:17.6]} 42... Ke6 {[%clk
0:00:03.5]} 43. Qe8+ {[%clk 0:01:11.7]} 43... Kf6 {[%clk 0:00:04.9]} 44. Rxf7#
{[%clk 0:01:11.4]} 1-0

[Event "*** Titled Tuesday Blitz"]
[Site "Chess.com"]
[Date "2018.05.01"]
[Round "7"]
[White "Kangoroo3000"]
[Black "sergeikim"]
[Result "1-0"]
[WhiteElo "2435"]
[BlackElo "2361"]
[TimeControl "180+2"]
[EndTime "14:35:09 PDT"]
[Termination "Kangoroo3000 won on time"]

1. d4 {[%clk 0:03:01.9]} 1... Nf6 {[%clk 0:03:00.2]} 2. c4 {[%clk 0:03:03.3]}
2... g6 {[%clk 0:03:01.2]} 3. Nc3 {[%clk 0:03:03.6]} 3... Bg7 {[%clk 0:03:02.2]}
4. e4 {[%clk 0:03:04.2]} 4... d6 {[%clk 0:03:03.1]} 5. Be2 {[%clk 0:03:05.6]}
5... O-O {[%clk 0:03:03.5]} 6. Be3 {[%clk 0:03:07.1]} 6... Nbd7 {[%clk 0:03:01]}
7. Nf3 {[%clk 0:03:04.4]} 7... e5 {[%clk 0:03:00.1]} 8. d5 {[%clk 0:02:58.4]}
8... Nc5 {[%clk 0:02:51.3]} 9. Nd2 {[%clk 0:02:58.6]} 9... a5 {[%clk 0:02:49]}
10. g4 {[%clk 0:02:59.7]} 10... c6 {[%clk 0:02:38.9]} 11. h4 {[%clk 0:02:59.7]}
11... Nfd7 {[%clk 0:02:38.8]} 12. h5 {[%clk 0:02:59.8]} 12... Bf6 {[%clk
0:02:38.1]} 13. Nf3 {[%clk 0:02:50.4]} 13... Nb6 {[%clk 0:02:26.4]} 14. Rg1
{[%clk 0:02:45.9]} 14... cxd5 {[%clk 0:02:21.8]} 15. cxd5 {[%clk 0:02:47.8]}
15... Bd7 {[%clk 0:02:09.1]} 16. Rc1 {[%clk 0:02:38]} 16... Rc8 {[%clk 0:02:06]}
17. Qd2 {[%clk 0:02:33.8]} 17... Nba4 {[%clk 0:01:54.4]} 18. Bd3 {[%clk
0:02:16]} 18... Nxd3+ {[%clk 0:01:41.5]} 19. Qxd3 {[%clk 0:02:17.9]} 19... Nxb2
{[%clk 0:01:41.3]} 20. Qb1 {[%clk 0:02:13.8]} 20... Nc4 {[%clk 0:01:32.3]} 21.
Bh6 {[%clk 0:02:12.5]} 21... Re8 {[%clk 0:01:31.6]} 22. Qxb7 {[%clk 0:02:06.1]}
22... a4 {[%clk 0:00:41.7]} 23. Qa6 {[%clk 0:01:50.2]} 23... Qa5 {[%clk
0:00:24.1]} 24. Qxa5 {[%clk 0:01:48.2]} 24... Nxa5 {[%clk 0:00:25]} 25. Nd2
{[%clk 0:01:47.2]} 25... Rc5 {[%clk 0:00:11.7]} 26. Be3 {[%clk 0:01:33.2]} 26...
Rc7 {[%clk 0:00:11.5]} 27. Bb6 {[%clk 0:01:33.5]} 27... Rxc3 {[%clk 0:00:09]}
28. Rxc3 {[%clk 0:01:33.6]} 28... Ra8 {[%clk 0:00:06.7]} 29. Ke2 {[%clk
0:01:21.2]} 29... Bb5+ {[%clk 0:00:05.9]} 30. Kf3 {[%clk 0:01:22.3]} 30... Bg5
{[%clk 0:00:06.5]} 31. Be3 {[%clk 0:01:12.3]} 31... Bd8 {[%clk 0:00:05.5]} 32.
Rb1 {[%clk 0:01:11.7]} 32... Bd7 {[%clk 0:00:05.7]} 33. Bb6 {[%clk 0:01:10.1]}
33... Rb8 {[%clk 0:00:05.5]} 34. Bxd8 {[%clk 0:01:05.8]} 34... Rxd8 {[%clk
0:00:05.4]} 35. Rb6 {[%clk 0:01:01.4]} 35... Be8 {[%clk 0:00:04.4]} 36. Nc4
{[%clk 0:01:00.9]} 36... Nxc4 {[%clk 0:00:03.9]} 37. Rxc4 {[%clk 0:01:02.8]}
37... f5 {[%clk 0:00:03.3]} 38. exf5 {[%clk 0:00:57.8]} 38... gxf5 {[%clk
0:00:04.4]} 39. gxf5 {[%clk 0:00:59.7]} 39... Bxh5+ {[%clk 0:00:04.5]} 40. Ke4
{[%clk 0:01:01.2]} 40... Be2 {[%clk 0:00:04.5]} 41. Rxa4 {[%clk 0:01:01.2]}
41... Bf1 {[%clk 0:00:05.2]} 42. f6 {[%clk 0:00:58]} 42... Bg2+ {[%clk
0:00:05.4]} 43. f3 {[%clk 0:00:59.4]} 43... Bh3 {[%clk 0:00:05.9]} 44. Ra7
{[%clk 0:00:59.5]} 44... Rc8 {[%clk 0:00:04.5]} 45. Rc6 {[%clk 0:00:57.7]} 45...
Rd8 {[%clk 0:00:04.7]} 46. Rcc7 {[%clk 0:00:54.9]} 1-0